Cogmind - Beta 9.6 @@@ ROGUE MODE // 2020.06.01 @ 23:53:52 Player: Decinym Result: Destroyed by as-43033 with Assembled F-torch Performance ------------- Evolutions (0) 0 Regions Visited (4) 800 Robots Destroyed (12) 60 Value Destroyed (158) 158 Prototype IDs (22) 440 Alien Tech Used (0) 0 Bonus (-29) -29 TOTAL SCORE: 1429 Bonus ------- Follower Combat Kills 42 Aligned with FarCom 300 Friendly Fire -371 Cogmind --------- Core Integrity 0/250 Matter 246/300 Energy 100/100 System Corruption 0% Temperature Cool (20) Movement Walking (120) Location -9/Mines Parts ------- > --- POWER (1) -------- (None) > --- PROPULSION (2) --- Aluminum Leg Aluminum Leg > --- UTILITY (2) ------ Large Storage Unit EX Chip 1 > --- WEAPON (2) ------- (None) > --- INVENTORY (10) --- Improved Aluminum Leg Medium Storage Unit Compact Matter Pod (150) EX Chip 2 Trap Reconfigurator XL Autogun Array Field Lobotomy Kit Peak State ------------ > --- POWER ------------ (None) > --- PROPULSION ------- (None) > --- UTILITY ---------- Large Storage Unit EX Chip 1 > --- WEAPON ----------- Field Lobotomy Kit > --- INVENTORY -------- Aluminum Leg Medium Storage Unit Compact Matter Pod EX Chip 2 Trap Reconfigurator XL Autogun Array [Rating: 18] Favorites ----------- Power Ion Engine Engine Ion Engine Propulsion Aluminum Leg Leg Aluminum Leg Utility Large Storage Unit Storage Large Storage Unit Hackware EX Chip 1 Protection Weapon Shielding Weapon Assault Rifle Energy Gun Small Laser Ballistic Gun Assault Rifle Launcher Rocket Launcher Special Weapon Field Lobotomy Kit Build | -11 -10 -10 -10 -9 ------- Run | Scr Mat Min Exi Min Slots Evolved . | . . . . . Power . | . . . . . Propulsion . | . . . . . Utility . | . . . . . Weapon . | . . . . . Parts Attached 18 | . 3 2 13 . Power 1 | . . . 1 . Engine 1 | . . . 1 . Core . | . . . . . Reactor . | . . . . . Propulsion 6 | . . 1 5 . Treads . | . . . . . Leg 6 | . . 1 5 . Wheel . | . . . . . Hover . | . . . . . Flight . | . . . . . Utility 4 | . 3 . 1 . Device . | . . . . . Storage 2 | . 2 . . . Processor . | . . . . . Hackware 1 | . . . 1 . Protection 1 | . 1 . . . Artifact . | . . . . . Weapon 7 | . . 1 6 . Energy Gun 1 | . . . 1 . Energy Cannon . | . . . . . Ballistic Gun 3 | . . 1 2 . Ballistic Cannon . | . . . . . Launcher 2 | . . . 2 . Special Weapon 1 | . . . 1 . Impact Weapon . | . . . . . Slashing Weapon . | . . . . . Piercing Weapon . | . . . . . Special Melee Weapon . | . . . . . Unidentified Prototypes . | . . . . . Parts Lost 12 | . . . 12 . Power 2 | . . . 2 . Propulsion 4 | . . . 4 . Utility 1 | . . . 1 . Weapon 5 | . . . 5 . Highest Loss Streak 7 | . . . 7 . Average Slot Usage (%) 90 | . 95 100 91 57 Engine 11 | . 14 14 11 . Leg 27 | . 28 28 27 28 Storage 14 | . 14 14 14 14 Hackware 4 | . . . 5 14 Protection 8 | . 9 14 7 . Energy Gun 2 | . . . 4 . Ballistic Gun 17 | . 28 28 14 . Launcher 2 | . . . 4 . Naked Turns . | . . . . . Heaviest Build 28 | 12 25 26 28 16 Greatest Support 20 | 20 20 20 20 20 Greatest Overweight (x) 2 | . 1 1 2 . Average Overweight (x) . | . . 1 . . Largest Inventory Capacity 10 | . 10 10 10 10 Average Capacity 9 | . 8 10 10 10 Most Carried 10 | . 8 10 10 10 Average Carried 9 | . 6 9 9 9 Final Capacity 10 | 6 10 10 10 10 Final Carried 10 | 6 8 10 9 10 Class Distribution -------------------- 84% | Mutant 15% | Scavenger-Mutant Dominant Class ---------------- Mutant | -10/Materials Mutant | -10/Mines Mutant | -10/Exiles Mutant | -9/Mines Resources | -11 -10 -10 -10 -9 ----------- Run | Scr Mat Min Exi Min Matter Collected 521 | 200 62 72 102 85 Remotely . | . . . . . Salvage Created 257 | . 128 97 32 . Parts 18 | . 9 9 . . Haulers Intercepted 1 | . 1 . . . Recyclers Shooed . | . . . . . Parts Field Recycled . | . . . . . Retrieved Matter . | . . . . . Parts Self-Destructed . | . . . . . Prevented . | . . . . . Kills | -11 -10 -10 -10 -9 ------- Run | Scr Mat Min Exi Min Combat Hostiles Destroyed 8 | . 2 2 4 . Guns 4 | . 2 2 . . AOE 4 | . . . 4 . Classes Destroyed 4 | . 2 1 1 . Tunneler 1 | . . 1 . . Hauler 1 | . 1 . . . Grunt 4 | . 2 2 . . Assembled 6 | . . . 6 . Best Kill Streak 4 | . 2 3 4 . Combat Bots Only 4 | . 2 2 4 . Max Kills in Single Turn 2 | . 1 1 2 . Gunslinging . | . . . . . Exploded 2 | . . . 2 . Melee . | . . . . . Uniques/NPCs Destroyed 2 | . . . 2 . EX-HEX (-10/Exiles) 8R-AWN (-10/Exiles) Combat | -11 -10 -10 -10 -9 -------- Run | Scr Mat Min Exi Min Damage Taken 1365 | . 89 98 1156 22 Core 252 | . 33 43 165 11 Absorbed by Shields . | . . . . . Core Remaining (%) 100 | 100 . . . . Volleys Fired 64 | . 8 13 43 . Largest 2 | . 2 2 2 . Hottest 40 | . 40 40 40 . Shots Fired 94 | . 16 26 52 . Gun 83 | . 16 26 41 . Cannon . | . . . . . Launcher 10 | . . . 10 . Special 1 | . . . 1 . Kinetic 73 | . 16 26 31 . Thermal 10 | . . . 10 . Explosive 10 | . . . 10 . Electromagnetic . | . . . . . Robot Hit Streak 9 | . 6 3 9 . Robot Miss Streak 4 | . 1 4 3 . Penetration Max . | . . . . . Secondary Targets . | . . . . . Shots Hit Robots 57 | . 11 13 33 . Core Hits 34 | . 6 8 20 . Critical Hits . | . . . . . Critical Kills . | . . . . . Critical Parts Destroyed . | . . . . . Melee Attacks . | . . . . . Impact . | . . . . . Slashing . | . . . . . Piercing . | . . . . . Sneak Attacks . | . . . . . Combat Hostiles . | . . . . . Follow-up Attacks . | . . . . . Damage Inflicted 1030 | . 112 139 779 . Guns 539 | . 112 139 288 . Cannons . | . . . . . Explosions 491 | . . . 491 . Melee . | . . . . . Ramming . | . . . . . Kinetic 448 | . 112 139 197 . Thermal 91 | . . . 91 . Explosive 491 | . . . 491 . Electromagnetic . | . . . . . Impact . | . . . . . Slashing . | . . . . . Piercing . | . . . . . Highest Corruption . | . . . . . Average Corruption . | . . . . . Corruption Purged . | . . . . . Overload Shots . | . . . . . Overflow Damage 6 | . . . 6 . Projectiles . | . . . . . Explosions 6 | . . . 6 . Melee . | . . . . . Knockbacks . | . . . . . Impact . | . . . . . Kinetic . | . . . . . Secondary . | . . . . . Self-Inflicted Damage . | . . . . . Shots . | . . . . . Rammed . | . . . . . Targets Rammed . | . . . . . Kicked . | . . . . . Crushed . | . . . . . Highest Temperature 18 | . 18 9 . . Average Temperature 9 | . 10 7 . . Received Heat Transfer 118 | . 48 30 . 40 Siege Activations . | . . . . . Robots Corrupted . | . . . . . Combat Hostiles . | . . . . . Parts Fried . | . . . . . Impact Corruptions . | . . . . . Robots Melted . | . . . . . Combat Hostiles . | . . . . . Parts Melted . | . . . . . Heat Transferred 48 | . . . 48 . Parts Sabotaged . | . . . . . Parts Stolen . | . . . . . Parts Stripped . | . . . . . Power Chain Reactions . | . . . . . Missiles Intercepted . | . . . . . Alert | -11 -10 -10 -10 -9 ------- Run | Scr Mat Min Exi Min Peak Influence 202 | . 51 202 . . Average Influence 76 | . 38 118 . . Maximum Alert Level 1 | . . 1 . . Low Security (%) 85 | . 100 75 . 100 Level 1 14 | . . 24 . . Level 2 . | . . . . . Level 3 . | . . . . . Level 4 . | . . . . . Level 5 . | . . . . . High Security . | . . . . . Max Security . | . . . . . Squads Dispatched 1 | . 1 . . . Investigation 1 | . 1 . . . Extermination . | . . . . . Reinforcement . | . . . . . Assault . | . . . . . Garrison . | . . . . . Intercept . | . . . . . Construction Impeded . | . . . . . Haulers Reinforced . | . . . . . Stealth | -11 -10 -10 -10 -9 --------- Run | Scr Mat Min Exi Min Distress Signals . | . . . . . Communications Jammed . | . . . . . Distress Signals . | . . . . . Times Spotted 19 | . 3 5 9 2 Peak Tracking Total 7 | . 2 3 7 3 Tactical Retreats 2 | . . . 1 1 Traps | -11 -10 -10 -10 -9 ------- Run | Scr Mat Min Exi Min Traps Triggered 1 | . 1 . . . Indirectly . | . . . . . Trap Hack Attempts . | . . . . . Triggered . | . . . . . Disarmed . | . . . . . Reprogrammed . | . . . . . Reused . | . . . . . Traps Extracted . | . . . . . Installed . | . . . . . Triggered . | . . . . . Machines | -11 -10 -10 -10 -9 ---------- Run | Scr Mat Min Exi Min Machines Disabled 7 | . . . 7 . Max in Single Turn 2 | . . . 2 . Machines Sabotaged . | . . . . . Garrisons Compromised . | . . . . . Overloaded Fab Kills . | . . . . . Fab Network Shutdowns . | . . . . . Hacking | -11 -10 -10 -10 -9 --------- Run | Scr Mat Min Exi Min Machines Accessed 4 | . 2 . 2 . Terminals 2 | . 2 . . . Fabricators . | . . . . . Repair Stations . | . . . . . Recycling Units . | . . . . . Scanalyzers . | . . . . . Garrison Access . | . . . . . Total Hacks 11 | . 5 . 6 . Successful 8 | . 2 . 6 . Failed 3 | . 3 . . . Catastrophic 3 | . 3 . . . Database Lockouts . | . . . . . Manual 6 | . 5 . 1 . Terminals 5 | . 5 . . . Fabricators . | . . . . . Repair Stations . | . . . . . Recycling Units . | . . . . . Scanalyzers . | . . . . . Garrison Access . | . . . . . Terminal Hacks 6 | . . . 6 . Record 5 | . . . 5 . EX-Prototype ID Bank 1 | . . . 1 . Fabricator Hacks . | . . . . . Repair Station Hacks . | . . . . . Recycling Unit Hacks . | . . . . . Scanalyzer . | . . . . . Garrison Access Hacks . | . . . . . Unauthorized Hacks 2 | . 2 . . . Terminals 2 | . 2 . . . Botnet 2 | . 2 . . . Fabricators . | . . . . . Repair Stations . | . . . . . Recycling Units . | . . . . . Scanalyzers . | . . . . . Garrison Access . | . . . . . Data Cores Recovered . | . . . . . Used . | . . . . . Hacking Detections 2 | . 2 . . . Full Trace Events . | . . . . . Feedback Events . | . . . . . Feedback Blocked . | . . . . . Robot Schematics Acquired . | . . . . . Robots Built . | . . . . . Matter . | . . . . . Time . | . . . . . Total Robot Build Rating . | . . . . . Part Schematics Acquired . | . . . . . Parts Built . | . . . . . Matter . | . . . . . Time . | . . . . . Total Part Build Rating . | . . . . . Parts Repaired . | . . . . . Time . | . . . . . Parts Recycled . | . . . . . Recycled Matter . | . . . . . Retrieved Matter . | . . . . . Retrieved Components . | . . . . . Parts Scanalyzed . | . . . . . Part Schematics Acquired . | . . . . . Parts Damaged . | . . . . . Bothacking | -11 -10 -10 -10 -9 ------------ Run | Scr Mat Min Exi Min Used RIF Installer . | . . . . . Robots Hacked . | . . . . . Non-combat . | . . . . . Combat . | . . . . . Robot Hacks Applied . | . . . . . Relay Couplers Released . | . . . . . Robots Rewired . | . . . . . Allies Hacked . | . . . . . Hacks Repelled . | . . . . . Allies | -11 -10 -10 -10 -9 -------- Run | Scr Mat Min Exi Min Total Allies 5 | . . 4 1 . Largest Group 3 | . . 3 3 1 Highest-Rated Group 52 | . . 40 52 16 Highest-Rated Ally 36 | . . 31 36 16 Total Orders . | . . . . . Ally Attacks 125 | . . 11 113 1 Total Damage 749 | . . 167 569 13 Kills 9 | . . 6 3 . Allies Corrupted . | . . . . . Allies Melted . | . . . . . Field Lobotomies 1 | . . . 1 . Intel | -11 -10 -10 -10 -9 ------- Run | Scr Mat Min Exi Min Robot Analysis Total . | . . . . . Derelict Logs Recovered 3 | . . 2 . 1 Drone Launches . | . . . . . Drone Recoveries . | . . . . . Exploration | -11 -10 -10 -10 -9 ------------- Run | Scr Mat Min Exi Min Turns Passed 1782 | . 168 497 930 187 Spaces Moved 1105 | 1 99 291 559 155 Core . | . . . . . Treads . | . . . . . Legs 1105 | 1 99 291 559 155 Wheels . | . . . . . Hover . | . . . . . Flight . | . . . . . Fastest Speed 120 | 120 120 150 120 120 Average Speed 142 | 120 134 150 145 120 Slowest Speed 180 | 120 150 150 180 120 Overloaded Moves . | . . . . . Propulsion Burnouts . | . . . . . Robots Hopped . | . . . . . Cave-ins Triggered . | . . . . . Exploration Rate (%) 41 | 2 29 57 70 47 Regions Visited 4 Branch Regions 3 Pre-discovered Areas 2 | . . . 1 1 Known Exits Taken . | . . . . . Unknown Exits Taken 4 | 1 1 1 1 . Scrap Searched 3 | . . 1 . 2 Spaces Dug . | . . . . . Terrain Destroyed 59 | . . . 59 . Melee . | . . . . . Projectile . | . . . . . AOE 59 | . . . 59 . Actions | -11 -10 -10 -10 -9 --------- Run | Scr Mat Min Exi Min Total 1228 | . 121 329 622 156 Wait 20 | . 1 18 1 . Move 1101 | . 98 290 558 155 Hop . | . . . . . Pick Up 14 | . 6 3 4 1 Fast Attach 5 | . 1 1 3 . Attach 7 | . . . 7 . Detach 1 | . . . 1 . Swap 6 | . 2 1 3 . Drop 10 | . 5 3 2 . Fire 64 | . 8 13 43 . Melee . | . . . . . Ram . | . . . . . Kick . | . . . . . Crush . | . . . . . Escape Stasis . | . . . . . Rewire . | . . . . . Trap . | . . . . . Miscellaneous . | . . . . . Route ------- -11/Scrapyard -10/Materials -10/Mines (discovered 2 exits: [*Mat] / *Exi) -10/Exiles -9/Mines History --------- Turn | Location | Event 1 | -11/Scrapyard | Discovered new exit (range 0) 1 | -11/Scrapyard | Entered Materials 121 | -10/Materials | Discovered new exit (range 11) 169 | -10/Materials | Entered Mines 172 | -10/Mines | Received a Mining Laser from a helpful Derelict 275 | -10/Mines | Discovered new exit (range 10) 315 | -10/Mines | Build established: Mutant 331 | -10/Mines | Received a Rocket Launcher from a helpful Derelict 487 | -10/Mines | Assisted by bots powering up and referring to "LRC-V3" 612 | -10/Mines | Learned Materials terminal intel 656 | -10/Mines | Deemed a non-threat by the Exiles lab entrance 657 | -10/Mines | Discovered new exit (range 5) 666 | -10/Mines | Entered Exiles 666 | -10/Exiles | Accompanied by 3 allies 702 | -10/Exiles | Met 8R-AWN 728 | -10/Exiles | Met EX-HEX 768 | -10/Exiles | Met EX-BIN 881 | -10/Exiles | Aligned with FarCom system 882 | -10/Exiles | Given EX-Vault access code 917 | -10/Exiles | Opened EX-Vault 953 | -10/Exiles | Warned to stay clear of 0b10 Research branches 1092 | -10/Exiles | Attacked by the Exiles 1104 | -10/Exiles | Allies destroyed EX-HEX 1153 | -10/Exiles | Core integrity fell below 50% 1191 | -10/Exiles | Core integrity fell below 20% 1194 | -10/Exiles | Allies destroyed 8R-AWN 1196 | -10/Exiles | Lost 7 parts (1p2n1u3w) 1300 | -10/Exiles | Found XL Autogun Array 1310 | -10/Exiles | Found Field Lobotomy Kit 1315 | -10/Exiles | Found Trap Reconfigurator 1488 | -10/Exiles | Assimilated DAS Turret with FLK Orb 1517 | -10/Exiles | Lost 5 parts (1p2n2w) 1541 | -10/Exiles | Learned location of Zion (-6) 1583 | -10/Exiles | Discovered new exit (range 10) 1596 | -10/Exiles | Stole three prototypes: Trap Reconfigurator, XL Autogun Array, Field Lobotomy Kit 1596 | -10/Exiles | Entered Mines 1596 | -9/Mines | Accompanied by 1 ally 1639 | -9/Mines | Assembled infested the area 1644 | -9/Mines | Assisted by a Guerilla fighting off Assembled 1783 | -9/Mines | Destroyed by as-43033 with Assembled F-torch Last Messages --------------- LOCATION=UNKNOWN GOAL=ESCAPE 01639_ ALERT: Infestation in the mines, dispatching Demolisher response squad. 01644_ A derelict emerges from the shadows: "You need to get out of here! I've been tracking a group of Assembled to figure out where they're coming from, and they're closing on this area, come on!" 01652_ Searching scrap... 01652_ Found 40 Matter. 01652_ Found Hrd. Light Armor Plating. 01653_ Acquired 40 matter. 01733_ Searching scrap... 01733_ Found 45 Matter. 01733_ Found Imp. Targeting Computer. 01733_ Found Imp. Aluminum Leg. 01733_ Found Terrain Scan Processor. 01734_ Acquired 45 matter. 01736_ Acquired Imp. Aluminum Leg. 01758_ Acquired derelict log, extracted data. World map confirmed: -6/Zion. Map ----- +----------------------------------------------------+ | | | | | | | | | | | | | | | | | | | | | | | | | | | | | | | | | | | ?????????????????????????????????????????????????? | | ?????????????????????????????????#####???????????? | | ???????????????????????????????### ! ##??????????? | | ????????????????################ #??????????? | | ????????????????# ! #??????????? | | ????????????????# #######a ##??????????? | | ????????????????# #?????# ###### # #???????????? | | ????????????????# #?????# #????#### #???????????? | | ????????????????# #?????#@#???????# #???????????? | | ????????????????# #?????# ??????# #???????????# | | ????????????????# ##### #???????????# | | ???????????????? #???######### | | ???????????????? #### #???# | | ???????????????## #### ###?# | | ????????????????## ###### ### ###### | | ??????????????????# ##???# ## #???## | | ???????????????????# #????# #??## | | ????????????????????# #???# #?## | | ????????????????????# ???## ###### | | ???????????????????? ???# ##???# | | ????????????????????# ??# #????# | | ????????????????????#### ????## #????# | | ????????????????????????#???????## #????## | | ?????????????????????????????????## #?????## | | ??????????????????????????????????## #??????# | | ???????????????????????????????????# ????### | | ???????????????????????????????????# ????# # | | ???????????????????????????????????## ???# # | | ????????????????????????????????????## #???# # # | | ?????????????????????????????????????# #???# # # | | ?????????????????????????????????????? #???# # # | | ?????????????????????????????????????? #???# # # | | ?????????????????????????????????????? #????# # # | +----------------------------------------------------+ Best States ------------- Heat Dissipation 25 Energy Generation 10 Energy Capacity 250 Matter Stores 300 Matter Capacity 300 Sight Range 16 Terrain Scan Density 10 Weapon Shielding 33 Evasion (%) 40 Offensive Hacking 7 Item Schematics ----------------- None Robot Schematics ------------------ None Fabricated ------------ Nothing Alien Tech Used ----------------- None Achievements -------------- None Challenges ------------ None Game ------ Seed PlasmaRemoteCloak Manual? 0 Play Time 00:12:03 Cumulative 296.6 hours Start 2020.06.01 @ 23:33:35 End 2020.06.01 @ 23:53:52 Sessions 2 Manual Loads 0 Difficulty Rogue Special Mode None Game No. 328 Rogue 328 Adventurer 0 Explorer 0 Win Type - Total 27 Types 16/3/2/1/2/0/3 Lore% 92 Gallery% 86 Achievement% 76 Wizard Run 0 Options --------- ASCII 0 Keyboard 0 Movement Arrows Keybinds 0 Fullscreen 2 Font 18/SmallcapsGlow Map View 76x50 Tactical HUD 1 Map Filters NONE Filters NONE Steam 1 RUN: 9ff28f39-d8e8-4437-852b-5449e2e16bd6